fUST/lending_fUST_20250527
["ID","MTS","AMOUNT","RATE_DAILY","PERIOD"]
[362461961,1748314248965,-430.0,0.0002027,2]
[362461962,1748314248975,-430.0,0.00020271,2]
[362461963,1748314248985,-859.1,0.00020271,2]
[362461964,1748314248995,-430.0,0.00020271,2]
[362461965,1748314249005,-430.0,0.00020271,2]
[362461966,1748314249014,-430.0,0.00020271,2]
[362461967,1748314249024,-430.0,0.00020271,2]
[362461968,1748314249033,-430.0,0.00020271,2]
[362461969,1748314249043,-430.0,0.00020271,2]
[362461970,1748314249053,-430.0,0.00020271,2]
[362461971,1748314249062,-276.203341,0.00020271,2]
[362461972,1748314249071,-430.0,0.00020271,2]
[362461973,1748314249082,-430.0,0.00020271,2]
[362461974,1748314249093,-430.0,0.00020271,2]
[362461975,1748314249103,-430.0,0.00020271,2]
[362461976,1748314249113,-430.0,0.00020271,2]
[362461977,1748314249123,-1305.37,0.00020271,2]
[362461978,1748314249133,-430.0,0.00020271,2]
[362461979,1748314249143,-430.0,0.00020271,2]
[362461980,1748314249154,-430.0,0.00020271,2]
[362461981,1748314249164,-430.0,0.00020271,2]
[362461982,1748314249174,-430.0,0.00020272,2]
[362461983,1748314249183,-430.0,0.00020272,2]
[362461984,1748314249193,-430.0,0.00020272,2]
[362461985,1748314249203,-430.0,0.00020272,2]
[362461986,1748314249213,-430.0,0.00020272,2]
[362461987,1748314249225,-430.0,0.00020272,2]
[362461988,1748314249234,-430.0,0.00020272,2]
[362461989,1748314249244,-863.75,0.00020272,2]
[362461990,1748314249254,-430.0,0.00020272,2]
[362461991,1748314249264,-430.0,0.00020272,2]
[362461992,1748314249274,-430.0,0.00020272,2]
[362461993,1748314249284,-150.0,0.00020328,2]
[362461994,1748314249293,-430.0,0.00020543,2]
[362461995,1748314249303,-430.0,0.00020543,2]
[362461996,1748314249313,-430.0,0.00020543,2]
[362461997,1748314249323,-1366.08,0.00020543,2]
[362461998,1748314249335,-1606.94,0.00020543,2]
[362461999,1748314249346,-753.23,0.00020543,2]
[362462000,1748314249361,-430.0,0.00020544,2]
[362462001,1748314249371,-898.47,0.00020544,2]
[362462002,1748314249382,-430.0,0.00020544,2]
[362462003,1748314249391,-2121.6,0.00020544,2]
[362462004,1748314249401,-430.0,0.00020544,2]
[362462005,1748314249411,-152.827261,0.00020544,2]
[362462006,1748314249421,-430.0,0.00020544,2]
[362462007,1748314249430,-430.0,0.00020544,2]
[362462008,1748314249440,-430.0,0.00020544,2]
[362462009,1748314249450,-430.0,0.00020544,2]
[362462010,1748314249459,-430.0,0.00020544,2]
[362462011,1748314249469,-430.0,0.00020544,2]
[362462012,1748314249479,-430.0,0.00020544,2]
[362462013,1748314249489,-430.0,0.00020544,2]
[362462014,1748314249498,-430.0,0.00020544,2]
[362462015,1748314249507,-430.0,0.00020544,2]
[362462016,1748314249517,-430.0,0.00020544,2]
[362462017,1748314249527,-152.953869,0.00020545,2]
[362462018,1748314249537,-517.75836595,0.00020545,2]
[362462019,1748314249547,-859.1,0.00020545,2]
[362462020,1748314249557,-430.0,0.00020545,2]
[362462021,1748314249568,-430.0,0.00020545,2]
[362462022,1748314249577,-245.22146804,0.00020545,2]
[362462023,1748314249590,-430.0,0.00020545,2]
[362462024,1748314249599,-430.0,0.00020545,2]
[362462025,1748314249609,-430.0,0.00020545,2]
[362462026,1748314249619,-430.0,0.00020545,2]
[362462027,1748314249629,-430.0,0.00020545,2]
[362462028,1748314249638,-430.0,0.00020545,2]
[362462029,1748314249648,-367.19109472,0.00020545,2]
[362462030,1748314249657,-430.0,0.00020545,2]
[362462031,1748314249667,-430.0,0.00020545,2]
[362462032,1748314249676,-1305.37,0.00020545,2]
[362462033,1748314249685,-430.0,0.00020545,2]
[362462034,1748314249695,-430.0,0.00020545,2]
[362462035,1748314249705,-500.69,0.00020545,2]
[362462036,1748314249715,-430.0,0.00020545,2]
[362462037,1748314249725,-430.0,0.00020546,2]
[362462038,1748314249741,-430.0,0.00020546,2]
[362462039,1748314249750,-159.14003444,0.00020546,2]
[362462040,1748314249759,-430.0,0.00020546,2]
[362462041,1748314249769,-430.0,0.00020546,2]
[362462042,1748314249778,-430.0,0.00020546,2]
[362462043,1748314249788,-430.0,0.00020546,2]
[362462044,1748314249801,-863.75,0.00020546,2]
[362462045,1748314249813,-430.0,0.00020546,2]
[362462046,1748314249823,-430.0,0.00020546,2]
[362462047,1748314249833,-430.0,0.00020546,2]
[362462048,1748314249844,-314.71326974,0.00020669,2]
[362462049,1748314249853,-12656.54583329,0.00020675,2]
[362462050,1748314249862,-151.0,0.00020692,2]
[362462051,1748314249872,-151.0,0.00020692,2]
[362462052,1748314249882,-180.548799,0.00020692,2]
[362462053,1748314249892,-500.0,0.00020719,2]
[362462054,1748314249901,-430.0,0.00020817,2]
[362462055,1748314249911,-430.0,0.00020817,2]
[362462056,1748314249921,-430.0,0.00020817,2]
[362462057,1748314249931,-1366.08,0.00020817,2]
[362462058,1748314249943,-1606.94,0.00020817,2]
[362462059,1748314249953,-753.23,0.00020817,2]
[362462060,1748314249963,-430.0,0.00020818,2]
[362462061,1748314249972,-898.47,0.00020818,2]
[362462062,1748314249984,-430.0,0.00020818,2]
[362462063,1748314249994,-2121.6,0.00020818,2]
[362462064,1748314250004,-430.0,0.00020818,2]
[362462065,1748314250013,-430.0,0.00020818,2]
[362462066,1748314250023,-430.0,0.00020818,2]
[362462067,1748314250032,-430.0,0.00020818,2]
[362462068,1748314250042,-430.0,0.00020818,2]
[362462069,1748314250052,-430.0,0.00020818,2]
[362462070,1748314250061,-430.0,0.00020818,2]
[362462071,1748314250071,-430.0,0.00020818,2]
[362462072,1748314250080,-430.0,0.00020818,2]
[362462073,1748314250091,-430.0,0.00020818,2]
[362462074,1748314250100,-430.0,0.00020818,2]
[362462075,1748314250109,-358.55330177,0.00020818,2]
[362462076,1748314250119,-859.1,0.00020819,2]
[362462077,1748314250128,-430.0,0.00020819,2]
[362462078,1748314250137,-430.0,0.00020819,2]
[362462079,1748314250147,-430.0,0.00020819,2]
[362462080,1748314250156,-167.52838037,0.00020819,2]
[362462081,1748314250165,-430.0,0.00020819,2]
[362462082,1748314250174,-430.0,0.00020819,2]
[362462083,1748314250184,-430.0,0.00020819,2]
[362462084,1748314250193,-430.0,0.00020819,2]
[362462085,1748314250202,-430.0,0.00020819,2]
[362462086,1748314250211,-430.0,0.00020819,2]
[362462087,1748314250220,-1305.37,0.00020819,2]
[362462088,1748314250229,-430.0,0.00020819,2]
[362462089,1748314250238,-430.0,0.00020819,2]
[362462090,1748314250248,-430.0,0.00020819,2]
[362462091,1748314250257,-224.12957703,0.0002082,2]
[362462092,1748314250266,-430.0,0.0002082,2]
[362462093,1748314250276,-430.0,0.0002082,2]
[362462094,1748314250286,-430.0,0.0002082,2]
[362462095,1748314250296,-430.0,0.0002082,2]
[362462096,1748314250305,-430.0,0.0002082,2]
[362462097,1748314250314,-863.75,0.0002082,2]
[362462098,1748314250323,-430.0,0.0002082,2]
[362462099,1748314250332,-430.0,0.0002082,2]
[362462100,1748314250344,-430.0,0.0002082,2]
[362462101,1748314250354,-218.7240183,0.000209,4]
[362462102,1748314250363,-500.0,0.00021,5]
[362462103,1748314250373,-2000.0,0.00021,3]
[362462104,1748314250382,-155.325,0.00021091,2]
[362462105,1748314250392,-430.0,0.00021091,2]
[362462106,1748314250402,-430.0,0.00021091,2]
[362462107,1748314250412,-430.0,0.00021091,2]
[362462108,1748314250421,-1366.08,0.00021091,2]
[362462109,1748314250431,-1606.94,0.00021091,2]
[362462110,1748314250441,-753.23,0.00021091,2]
[362462111,1748314250451,-430.0,0.00021092,2]
[362462112,1748314250461,-898.47,0.00021092,2]
[362462113,1748314250471,-430.0,0.00021092,2]
[362462114,1748314250481,-2121.6,0.00021092,2]
[362462115,1748314250491,-430.0,0.00021092,2]
[362462116,1748314250500,-430.0,0.00021092,2]
[362462117,1748314250510,-260.87582668,0.00021092,2]
[362462118,1748314250519,-430.0,0.00021092,2]
[362462119,1748314250529,-430.0,0.00021092,2]
[362462120,1748314250538,-430.0,0.00021092,2]
[362462121,1748314250548,-430.0,0.00021092,2]
[362462122,1748314250557,-430.0,0.00021092,2]
[362462123,1748314250567,-430.0,0.00021092,2]
[362462124,1748314250577,-430.0,0.00021092,2]
[362462125,1748314250587,-430.0,0.00021092,2]
[362462126,1748314250596,-151.0,0.00021093,2]
[362462127,1748314250606,-151.0,0.00021093,2]
[362462128,1748314250615,-859.1,0.00021093,2]
[362462129,1748314250624,-430.0,0.00021093,2]
[362462130,1748314250634,-430.0,0.00021093,2]
[362462131,1748314250644,-430.0,0.00021093,2]
[362462132,1748314250654,-438.12,0.00021093,2]
[362462133,1748314250765,-430.0,0.00021093,2]
[362462134,1748314250776,-430.0,0.00021093,2]
[362462135,1748314250786,-430.0,0.00021093,2]
[362462136,1748314250800,-430.0,0.00021093,2]
[362462137,1748314250809,-430.0,0.00021093,2]
[362462138,1748314250818,-1305.37,0.00021093,2]
[362462139,1748314250828,-430.0,0.00021093,2]
[362462140,1748314250837,-430.0,0.00021093,2]
[362462141,1748314250847,-430.0,0.00021093,2]
[362462142,1748314250856,-161.151623,0.00021094,2]
[362462143,1748314250866,-430.0,0.00021094,2]
[362462144,1748314250875,-435.63286939,0.00021094,2]
[362462145,1748314250885,-401.27992961,0.00021094,2]
[362462146,1748314250894,-430.0,0.00021094,2]
[362462147,1748314250903,-447.41139141,0.00021094,2]
[362462148,1748314250913,-863.75,0.00021094,2]
[362462149,1748314250922,-457.93127347,0.00021094,2]
[362462150,1748314250931,-430.0,0.00021094,2]
[362462151,1748314250941,-430.0,0.00021094,2]
[362462152,1748314250950,-301.0,0.00021136,2]
[362462153,1748314250960,-500.0,0.00021164,2]
[362462154,1748314250969,-300.0,0.00021188,2]
[362462155,1748314250978,-502.0,0.000212,5]
[362462156,1748314250988,-150.0,0.00021252,2]
[362462157,1748314250997,-430.0,0.00021365,2]
[362462158,1748314251006,-430.0,0.00021365,2]
[362462159,1748314251014,-430.0,0.00021365,2]
[362462160,1748314251024,-1366.08,0.00021365,2]
[362462161,1748314251034,-1606.94,0.00021365,2]
[362462162,1748314251043,-753.23,0.00021365,2]
[362462163,1748314251052,-898.47,0.00021366,2]
[362462164,1748314251062,-430.0,0.00021366,2]
[362462165,1748314251071,-2121.6,0.00021366,2]
[362462166,1748314251080,-430.0,0.00021366,2]
[362462167,1748314251092,-430.0,0.00021366,2]
[362462168,1748314251101,-430.0,0.00021366,2]
[362462169,1748314251110,-430.0,0.00021366,2]
[362462170,1748314251119,-430.0,0.00021366,2]
[362462171,1748314251128,-430.0,0.00021366,2]
[362462172,1748314251137,-430.0,0.00021366,2]
[362462173,1748314251146,-859.1,0.00021367,2]
[362462174,1748314251155,-430.0,0.00021367,2]
[362462175,1748314251165,-430.0,0.00021367,2]
[362462176,1748314251174,-430.0,0.00021367,2]
[362462177,1748314251184,-430.0,0.00021367,2]
[362462178,1748314251194,-430.0,0.00021367,2]
[362462179,1748314251203,-430.0,0.00021367,2]
[362462180,1748314251213,-1305.37,0.00021367,2]
[362462181,1748314251223,-430.0,0.00021367,2]
[362462182,1748314251233,-430.0,0.00021368,2]
[362462183,1748314251243,-433.58,0.00021368,2]
[362462184,1748314251252,-863.75,0.00021368,2]
[362462185,1748314251261,-430.0,0.00021368,2]
[362462186,1748314251271,-430.0,0.00021368,2]
[362462187,1748314251280,-207.4,0.00021405,2]
[362462188,1748314251290,-2318.701154,0.00021451,2]
[362462189,1748314251300,-500.0,0.000216,5]
[362462190,1748314251310,-430.0,0.00021639,2]
[362462191,1748314251319,-384.7212484,0.00021639,2]
[362462192,1748314251330,-430.0,0.00021639,2]
[362462193,1748314251341,-1366.08,0.00021639,2]
[362462194,1748314251350,-1606.94,0.00021639,2]
[362462195,1748314251360,-753.23,0.00021639,2]
[362462196,1748314251369,-898.47,0.0002164,2]
[362462197,1748314251379,-430.0,0.0002164,2]
[362462198,1748314251389,-2121.6,0.0002164,2]
[362462199,1748314251399,-397.78,0.0002164,2]
[362462200,1748314251409,-181.02,0.0002164,2]
[362462201,1748314251418,-151.0,0.00021641,2]
[362462202,1748314251429,-151.0,0.00021641,2]
[362462203,1748314251439,-859.1,0.00021641,2]
[362462204,1748314251448,-430.0,0.00021641,2]
[362462205,1748314251459,-318.3,0.00021641,2]
[362462206,1748314251468,-430.0,0.00021641,2]
[362462207,1748314251478,-430.0,0.00021641,2]
[362462208,1748314251489,-1305.37,0.00021641,2]
[362462209,1748314251499,-430.0,0.00021641,2]
[362462210,1748314251509,-863.75,0.00021642,2]
[362462211,1748314251518,-342.0,0.00021642,2]
[362462212,1748314251528,-430.0,0.00021642,2]
[362462213,1748314251537,-564.18108272,0.00021755,2]
[362462214,1748314251546,-500.0,0.000218,5]
[362462215,1748314251555,-2001.5788726,0.000219,5]
[362462216,1748314251565,-218.7240183,0.000219,6]
[362462217,1748314251574,-430.0,0.00021913,2]
[362462218,1748314251584,-1366.08,0.00021913,2]
[362462219,1748314251594,-1606.94,0.00021913,2]
[362462220,1748314251604,-753.23,0.00021913,2]
[362462221,1748314251614,-898.47,0.00021914,2]
[362462222,1748314251624,-430.0,0.00021914,2]
[362462223,1748314251633,-2121.6,0.00021914,2]
[362462224,1748314251643,-859.1,0.00021915,2]
[362462225,1748314251652,-345.67,0.00021915,2]
[362462226,1748314251663,-430.0,0.00021915,2]
[362462227,1748314251673,-430.0,0.00021915,2]
[362462228,1748314251682,-1305.37,0.00021915,2]
[362462229,1748314251692,-430.0,0.00021915,2]
[362462230,1748314251702,-863.75,0.00021916,2]
[362462231,1748314251711,-430.0,0.00021916,2]
[362462232,1748314251721,-500.0,0.00022,5]
[362462233,1748314251730,-2090.94563272,0.00022,2]
[362462234,1748314251739,-2000.0,0.00022,5]
[362462235,1748314251748,-150.0,0.00022176,2]
[362462236,1748314251758,-492.0,0.00022187,2]
[362462237,1748314251767,-1366.08,0.00022187,2]
[362462238,1748314251779,-1606.94,0.00022187,2]
[362462239,1748314251789,-753.23,0.00022187,2]
[362462240,1748314251802,-898.47,0.00022188,2]
[362462241,1748314251812,-430.0,0.00022188,2]
[362462242,1748314251823,-2121.6,0.00022188,2]
[362462243,1748314251834,-859.1,0.00022189,2]
[362462244,1748314251844,-480.17,0.00022189,2]
[362462245,1748314251854,-430.0,0.00022189,2]
[362462246,1748314251864,-1305.37,0.00022189,2]
[362462247,1748314251875,-516.76,0.00022189,2]
[362462248,1748314251886,-863.75,0.0002219,2]
[362462249,1748314251895,-430.0,0.0002219,2]
[362462250,1748314251905,-1366.08,0.00022461,2]
[362462251,1748314251914,-1606.94,0.00022461,2]
[362462252,1748314251923,-753.23,0.00022461,2]
[362462253,1748314251933,-898.47,0.00022462,2]
[362462254,1748314251943,-430.0,0.00022462,2]
[362462255,1748314251952,-2121.6,0.00022462,2]
[362462256,1748314251961,-859.1,0.00022463,2]
[362462257,1748314251971,-430.0,0.00022463,2]
[362462258,1748314251982,-1305.37,0.00022463,2]
[362462259,1748314251992,-151.0,0.00022464,2]
[362462260,1748314252002,-151.0,0.00022464,2]
[362462261,1748314252011,-863.75,0.00022464,2]
[362462262,1748314252021,-430.0,0.00022464,2]
[362462263,1748314252032,-1366.08,0.00022735,2]
[362462264,1748314252042,-1606.94,0.00022735,2]
[362462265,1748314252052,-753.23,0.00022735,2]
[362462266,1748314252061,-898.47,0.00022736,2]
[362462267,1748314252070,-430.0,0.00022736,2]
[362462268,1748314252080,-2121.6,0.00022736,2]
[362462269,1748314252090,-859.1,0.00022737,2]
[362462270,1748314252099,-430.0,0.00022737,2]
[362462271,1748314252108,-1305.37,0.00022737,2]
[362462272,1748314252117,-863.75,0.00022738,2]
[362462273,1748314252127,-430.0,0.00022738,2]
[362462274,1748314252136,-215.0738,0.00022774,2]
[362462275,1748314252146,-160.334566,0.00022784,2]
[362462276,1748314252155,-218.7240183,0.000229,8]
[362462277,1748314252164,-2000.0,0.00023,5]
[362462278,1748314252174,-1366.08,0.00023009,2]
[362462279,1748314252184,-1606.94,0.00023009,2]
[362462280,1748314252194,-753.23,0.00023009,2]
[362462281,1748314252203,-898.47,0.0002301,2]
[362462282,1748314252212,-430.0,0.0002301,2]
[362462283,1748314252222,-2121.6,0.0002301,2]
[362462284,1748314252232,-859.1,0.00023011,2]
[362462285,1748314252241,-430.0,0.00023011,2]
[362462286,1748314252251,-1305.37,0.00023011,2]
[362462287,1748314252260,-863.75,0.00023012,2]
[362462288,1748314252270,-556.87315875,0.00023012,2]
[362462289,1748314252279,-501.30459865,0.00023267,2]
[362462290,1748314252288,-600.0,0.00023267,2]
[362462291,1748314252298,-502.27571044,0.00023267,2]
[362462292,1748314252307,-500.8603702,0.00023267,2]
[362462293,1748314252317,-500.0,0.00023267,2]
[362462294,1748314252326,-500.0,0.00023267,2]
[362462295,1748314252335,-347.04928737,0.00023267,2]
[362462296,1748314252344,-500.0,0.00023267,2]
[362462297,1748314252353,-528.39194936,0.00023267,2]
[362462298,1748314252363,-501.17373126,0.00023267,2]
[362462299,1748314252372,-500.0,0.00023267,2]
[362462300,1748314252381,-500.0,0.00023267,2]
[362462301,1748314252391,-500.0,0.00023267,2]
[362462302,1748314252400,-500.0,0.00023267,2]
[362462303,1748314252412,-501.77831066,0.00023267,2]
[362462304,1748314252422,-500.0,0.00023267,2]
[362462305,1748314252431,-500.90790387,0.00023267,2]
[362462306,1748314252442,-500.0,0.00023267,2]
[362462307,1748314252451,-538.04085332,0.00023267,2]
[362462308,1748314252460,-500.0,0.00023267,2]
[362462309,1748314252470,-500.0,0.00023267,2]
[362462310,1748314252479,-502.42492343,0.00023267,2]
[362462311,1748314252489,-266.04937106,0.00023267,2]
[362462312,1748314252503,-1366.08,0.00023283,2]
[362462313,1748314252513,-1606.94,0.00023283,2]
[362462314,1748314252522,-753.23,0.00023283,2]
[362462315,1748314252531,-898.47,0.00023284,2]
[362462316,1748314252540,-430.0,0.00023284,2]
[362462317,1748314252550,-2121.6,0.00023284,2]
[362462318,1748314252559,-859.1,0.00023285,2]
[362462319,1748314252568,-430.0,0.00023285,2]
[362462320,1748314252578,-1305.37,0.00023285,2]
[362462321,1748314252588,-863.75,0.00023286,2]
[362462322,1748314252598,-528.133788,0.00023323,3]
[362462323,1748314252607,-500.0,0.00023356,2]
[362462324,1748314252616,-893.5,0.00023368,15]
[362462325,1748314252625,-174.34780184,0.00023371,2]
[362462326,1748314252634,-513.44135056,0.00023371,2]
[362462327,1748314252644,-151.0,0.00023469,2]
[362462328,1748314252653,-151.0,0.00023469,2]
[362462329,1748314252663,-2003.59337405,0.000235,2]
[362462330,1748314252672,-1366.08,0.00023557,2]
[362462331,1748314252681,-1606.94,0.00023557,2]
[362462332,1748314252690,-753.23,0.00023557,2]
[362462333,1748314252699,-898.47,0.00023558,2]
[362462334,1748314252709,-430.0,0.00023558,2]
[362462335,1748314252718,-2121.6,0.00023558,2]
[362462336,1748314252727,-859.1,0.00023559,2]
[362462337,1748314252737,-430.0,0.00023559,2]
[362462338,1748314252746,-1305.37,0.00023559,2]
[362462339,1748314252755,-863.75,0.0002356,2]
[362462340,1748314252765,-150.23,0.000236,2]
[362462341,1748314252776,-161.07190173,0.00023635,5]
[362462342,1748314252786,-302.84535403,0.00023799,2]
[362462343,1748314252797,-375.0,0.00023799,7]
[362462344,1748314252807,-99162.21864237,0.000238,7]
[362462345,1748314252816,-1005.98,0.000238,7]
[362462346,1748314252827,-1000.0,0.000238,10]
[362462347,1748314252838,-3000.0,0.000238,2]
[362462348,1748314252847,-151.0,0.000238,2]
[362462349,1748314252856,-151.0,0.000238,2]
[362462350,1748314252866,-226.831885,0.000238,14]
[362462351,1748314252875,-314.71326974,0.000238,7]
[362462352,1748314252885,-3000.0,0.0002381,2]
[362462353,1748314252894,-1200.0,0.00023815,2]
[362462354,1748314252904,-1000.0,0.00023815,2]
[362462355,1748314252913,-1000.0,0.00023815,2]
[362462356,1748314252923,-1000.0,0.00023815,2]
[362462357,1748314252932,-1000.0,0.00023815,2]
[362462358,1748314252942,-1000.0,0.00023815,2]
[362462359,1748314252951,-1000.0,0.00023815,2]
[362462360,1748314252960,-1000.0,0.00023815,2]
[362462361,1748314252970,-1000.0,0.00023815,2]
[362462362,1748314252979,-502.12634044,0.00023815,2]
[362462363,1748314252989,-1000.0,0.00023815,2]
[362462364,1748314252998,-1000.0,0.00023815,2]
[362462365,1748314253008,-3000.0,0.0002382,2]
[362462366,1748314253017,-3000.0,0.0002383,2]
[362462367,1748314253026,-1366.08,0.00023831,2]
[362462368,1748314253036,-1606.94,0.00023831,2]
[362462369,1748314253045,-753.23,0.00023831,2]
[362462370,1748314253055,-898.47,0.00023832,2]
[362462371,1748314253065,-430.0,0.00023832,2]
[362462372,1748314253074,-2121.6,0.00023832,2]
[362462373,1748314253182,-859.1,0.00023833,2]
[362462374,1748314253192,-430.0,0.00023833,2]
[362462375,1748314253202,-1305.37,0.00023833,2]
[362462376,1748314253211,-863.75,0.00023834,2]
[362462377,1748314253221,-3680.624819,0.0002384,2]
[362462378,1748314253230,-988.86599332,0.0002387,2]
[362462379,1748314253240,-302.61466001,0.00023873,3]
[362462380,1748314253250,-723.65,0.00023878,7]
[362462381,1748314253259,-1299.51994567,0.000239,2]
[362462382,1748314253268,-218.7240183,0.000239,10]
[362462383,1748314253277,-500.0,0.00023973,2]
[362462384,1748314253287,-500.0,0.00023973,2]
[362462385,1748314253296,-723.65,0.00023978,4]
[362462386,1748314253305,-160.0,0.00023999,2]
[362462387,1748314253315,-4000.0,0.00024,2]
[362462388,1748314253324,-10000.0,0.00024,2]
[362462389,1748314253334,-188.64819781,0.00024,21]
[362462390,1748314253345,-50000.0,0.00024,4]
[362462391,1748314253355,-50000.0,0.00024,4]
[362462392,1748314253364,-50000.0,0.00024,4]
[362462393,1748314253373,-50000.0,0.00024,4]
[362462394,1748314253382,-18656.58740834,0.00024,4]
[362462395,1748314253474,-3439.63881522,0.00024,4]
[362462403,1748315155129,-163.0,0.00016438,3]
[362462404,1748315155150,-1082.68051247,0.00018564,2]
[362462405,1748315229122,-1031.41251393,0.00018564,2]
[362462406,1748315229147,-614.08551382,0.000189,2]
[362462407,1748315229168,-189.87727155,0.00019348,2]
[362462408,1748315229189,-300.0,0.00019396,2]
[362462409,1748315229209,-10379.10399204,0.00019397,2]
[362462410,1748315241092,-2628.5023498,0.00019397,2]
[362462411,1748315241118,-430.0,0.00019397,2]
[362462412,1748315241144,-430.0,0.00019397,2]
[362462413,1748315241167,-300.0,0.00019397,2]
[362462414,1748315241191,-300.0,0.00019397,2]
[362462415,1748315241213,-430.0,0.00019397,2]
[362462416,1748315241236,-430.0,0.00019397,2]
[362462417,1748315241259,-430.0,0.00019397,2]
[362462418,1748315241282,-430.0,0.00019397,2]
[362462419,1748315241303,-430.0,0.00019397,2]
[362462420,1748315241326,-1370.45,0.00019397,2]
[362462421,1748315241350,-1839.75,0.00019397,2]
[362462422,1748315241374,-829.46,0.00019397,2]
[362462423,1748315241398,-430.0,0.00019397,2]
[362462424,1748315241426,-430.0,0.00019397,2]
[362462425,1748315241450,-336.90167801,0.00019397,2]
[362462426,1748315241472,-213.00743177,0.00019397,2]
[362462427,1748315241494,-396.06463008,0.00019397,2]
[362462428,1748315241515,-431.37555284,0.00019398,2]
[362462429,1748315241536,-430.0,0.00019398,2]
[362462430,1748315241556,-430.0,0.00019398,2]
[362462431,1748315241579,-394.98024811,0.00019398,2]
[362462432,1748315241601,-430.0,0.00019398,2]
[362462433,1748315241623,-412.38570881,0.00019398,2]
[362462434,1748315241646,-430.0,0.00019398,2]
[362462435,1748315241669,-447.08694593,0.00019398,2]
[362462436,1748315241691,-450.02466814,0.00019398,2]
[362462437,1748315241713,-444.57626971,0.00019398,2]
[362462438,1748315241734,-11.17468924,0.00019398,2]
[362462439,1748315249109,-927.49708816,0.00019397,2]
[362462442,1748315345147,-348.3331731,0.00018491,2]
[362462443,1748315345170,-21.23615847,0.00019396,2]
[362462444,1748315372121,-278.76384153,0.00019396,2]
[362462445,1748315372145,-1216.25291184,0.00019397,2]
[362462446,1748315372168,-1040.01,0.00019397,2]
[362462447,1748315372191,-528.99,0.00019397,2]
[362462448,1748315372214,-430.0,0.00019397,2]
[362462449,1748315372237,-430.0,0.00019397,2]
[362462450,1748315372258,-430.0,0.00019397,2]
[362462451,1748315372279,-430.0,0.00019397,2]
[362462452,1748315372301,-430.0,0.00019397,2]
[362462453,1748315372322,-430.0,0.00019397,2]
[362462454,1748315372343,-430.0,0.00019397,2]
[362462455,1748315372363,-430.0,0.00019397,2]
[362462456,1748315372384,-430.0,0.00019397,2]
[362462457,1748315372407,-430.0,0.00019397,2]
[362462458,1748315372429,-430.0,0.00019397,2]
[362462459,1748315372450,-513.85908739,0.00019397,2]
[362462488,1748315432160,-41.38059154,0.00019397,2]
[362462490,1748315432169,-368.18,0.00019397,2]
[362462492,1748315432180,-430.0,0.00019397,2]
[362462494,1748315432189,-423.51459779,0.00019397,2]
[362462496,1748315432202,-430.0,0.00019397,2]
[362462498,1748315432214,-411.65051915,0.00019397,2]
[362462500,1748315432227,-432.39572368,0.00019397,2]
[362462502,1748315432236,-430.0,0.00019397,2]
[362462504,1748315432246,-430.0,0.00019397,2]
[362462506,1748315432256,-430.0,0.00019397,2]